fUSD/lending_fUSD_20241123
["ID","MTS","AMOUNT","RATE_DAILY","PERIOD"]
[343087705,1732343439637,-1138.3,0.00052602,120]
[343087706,1732343439647,-500.0,0.00052602,120]
[343087707,1732343439656,-1647.0,0.00052602,120]
[343087709,1732343439666,-1647.0,0.00052602,120]
[343087710,1732343439676,-597.15325711,0.00052602,120]
[343087711,1732343439685,-1647.0,0.00052602,120]
[343087712,1732343439696,-1647.0,0.00052602,120]
[343087713,1732343439706,-1647.0,0.00052602,120]
[343087714,1732343439716,-500.0,0.00052602,120]
[343087715,1732343439730,-1647.0,0.00052602,120]
[343087717,1732343439739,-500.0,0.00052602,120]
[343087718,1732343439749,-1647.0,0.00052602,120]
[343087719,1732343439759,-500.0,0.00052602,120]
[343087720,1732343439770,-1647.0,0.00052602,120]
[343087721,1732343439783,-500.0,0.00052602,120]
[343087722,1732343439793,-429.56044969,0.00052602,120]
[343087723,1732343439803,-1647.0,0.00052602,120]
[343087724,1732343439813,-500.0,0.00052602,120]
[343087725,1732343439823,-1647.0,0.00052602,120]
[343087726,1732343439832,-500.0,0.00052602,120]
[343087727,1732343439841,-503.11110746,0.00052602,120]
[343087728,1732343439851,-1647.0,0.00052602,120]
[343087729,1732343439864,-500.0,0.00052602,120]
[343087730,1732343439873,-1647.0,0.00052602,120]
[343087731,1732343439883,-500.0,0.00052602,120]
[343087732,1732343439893,-1647.0,0.00052602,120]
[343087733,1732343439903,-500.0,0.00052602,120]
[343087734,1732343439913,-1647.0,0.00052602,120]
[343087735,1732343439922,-1647.0,0.00052602,120]
[343087736,1732343439933,-1647.0,0.00052602,120]
[343087737,1732343439943,-1647.0,0.00052602,120]
[343087738,1732343439952,-1647.0,0.00052602,120]
[343087739,1732343439961,-1647.0,0.00052602,120]
[343087740,1732343439972,-500.0,0.00052602,2]
[343087741,1732343439981,-500.0,0.00052602,2]
[343087742,1732343439991,-500.0,0.00052602,2]
[343087743,1732343439999,-500.0,0.00052602,2]
[343087744,1732343440009,-187.39045898,0.00052602,2]
[343087745,1732343440019,-500.0,0.00052602,120]
[343087746,1732343440029,-500.0,0.00052602,120]
[343087747,1732343440039,-166.15432422,0.00052602,120]
[343087748,1732343440049,-500.0,0.00052602,120]
[343087749,1732343440058,-500.0,0.00052602,120]
[343087750,1732343440067,-500.0,0.00052602,120]
[343087751,1732343440077,-500.0,0.00052602,120]
[343087752,1732343440086,-500.0,0.00052602,120]
[343087753,1732343440096,-500.0,0.00052602,120]
[343087754,1732343440105,-500.0,0.00052602,120]
[343087755,1732343440117,-500.0,0.00052602,120]
[343087756,1732343440129,-500.0,0.00052602,120]
[343087757,1732343440139,-500.0,0.00052602,120]
[343087758,1732343440148,-500.0,0.00052602,120]
[343087759,1732343440157,-422.28645792,0.00052782,120]
[343087760,1732343440167,-500.0,0.00053073,10]
[343087761,1732343440177,-1138.3,0.00053078,120]
[343087762,1732343440187,-1138.3,0.00053078,120]
[343087763,1732343440197,-1138.3,0.00053078,120]
[343087764,1732343440207,-1138.3,0.00053078,120]
[343087765,1732343440217,-1138.462,0.00053078,120]
[343087766,1732343440227,-1647.0,0.00053078,120]
[343087767,1732343440236,-1647.0,0.00053078,120]
[343087769,1732343440246,-1647.0,0.00053078,120]
[343087771,1732343440256,-1647.0,0.00053078,120]
[343087773,1732343440265,-1647.07353408,0.00053078,120]
[343087776,1732343440275,-504.17217013,0.00053079,120]
[343087779,1732343440284,-422.73325267,0.00053079,120]
[343087781,1732343440294,-941.46,0.00053079,120]
[343087783,1732343440304,-528.45215174,0.00053079,120]
[343087785,1732343440314,-512.96223375,0.00053079,120]
[343087787,1732343440324,-506.30468472,0.00053079,120]
[343087788,1732343440334,-2501.88,0.00053079,120]
[343087789,1732343440344,-595.77150685,0.00053079,120]
[343087790,1732343440354,-507.16455341,0.00053079,120]
[343087791,1732343440366,-506.33241204,0.00053079,120]
[343087792,1732343440375,-500.0,0.00053079,120]
[343087793,1732343440385,-511.63940497,0.00053079,120]
[343087794,1732343440396,-1979.59,0.00053079,120]
[343087798,1732343440494,-508.96618614,0.00053079,120]
[343087801,1732343440505,-500.0,0.00053079,120]
[343087803,1732343440514,-771.76,0.00053079,120]
[343087805,1732343440524,-500.0,0.00053079,120]
[343087807,1732343440535,-500.0,0.00053079,120]
[343087809,1732343440544,-765.93,0.00053079,120]
[343087810,1732343440554,-304.16402911,0.00053079,120]
[343087812,1732343440564,-2312.61984474,0.0005308,120]
[343087814,1732343440574,-370.48317782,0.0005308,120]
[343087817,1732343440583,-941.46,0.0005308,120]
[343087819,1732343440594,-279.3396,0.0005308,120]
[343087821,1732343440604,-2501.88,0.0005308,120]
[343087823,1732343440616,-151.0,0.0005308,7]
[343087825,1732343440625,-279.3396,0.0005308,120]
[343087827,1732343440635,-500.0,0.0005308,120]
[343087829,1732343440645,-151.0,0.0005308,120]
[343087831,1732343440656,-1979.59,0.0005308,120]
[343087833,1732343440666,-500.0,0.0005308,120]
[343087835,1732343440677,-771.76,0.0005308,120]
[343087837,1732343440687,-642.61063151,0.0005308,120]
[343087839,1732343440698,-500.0,0.0005308,120]
[343087841,1732343440707,-765.93,0.0005308,120]
[343087843,1732343440717,-1816.86,0.00053081,120]
[343087845,1732343440728,-1538.34,0.00053081,120]
[343087847,1732343440742,-1794.6,0.00053081,120]
[343087849,1732343440751,-1838.67,0.00053081,120]
[343087851,1732343440761,-500.0,0.00053081,120]
[343087853,1732343440771,-500.0,0.00053081,120]
[343087855,1732343440783,-500.0,0.00053081,120]
[343087857,1732343440792,-500.0,0.00053081,120]
[343087859,1732343440803,-500.0,0.00053081,120]
[343087861,1732343440813,-732.78,0.00053082,120]
[343087863,1732343440822,-732.78,0.00053082,120]
[343087865,1732343440831,-732.78,0.00053082,120]
[343087866,1732343440841,-732.78,0.00053082,120]
[343087868,1732343440851,-732.78,0.00053082,120]
[343087870,1732343440861,-420.1979192,0.00053082,120]
[343087872,1732343440871,-513.52615399,0.00053082,120]
[343087874,1732343440880,-691.96,0.00053082,120]
[343087876,1732343440891,-691.96,0.00053082,120]
[343087878,1732343440900,-691.96,0.00053082,120]
[343087880,1732343440910,-691.96,0.00053082,120]
[343087882,1732343440919,-691.96,0.00053082,120]
[343087883,1732343440928,-504.77061695,0.00053082,120]
[343087884,1732343440936,-748.06,0.00053082,120]
[343087885,1732343440947,-748.06,0.00053082,120]
[343087886,1732343440956,-748.06,0.00053082,120]
[343087887,1732343440966,-748.06,0.00053082,120]
[343087888,1732343440975,-748.06,0.00053082,120]
[343087889,1732343440984,-500.0,0.00053082,120]
[343087890,1732343440993,-500.0,0.00053082,120]
[343087891,1732343441003,-500.0,0.00053082,120]
[343087892,1732343441012,-500.0,0.00053082,120]
[343087893,1732343441022,-500.0,0.00053082,120]
[343087894,1732343441032,-2172.01,0.00053082,120]
[343087895,1732343441041,-2172.01,0.00053082,120]
[343087896,1732343441050,-2172.01,0.00053082,120]
[343087897,1732343441060,-2172.01,0.00053082,120]
[343087898,1732343441069,-2172.01,0.00053082,120]
[343087899,1732343441079,-511.3602665,0.00053082,120]
[343087900,1732343441088,-420.38099863,0.00053082,120]
[343087901,1732343441098,-2971.55,0.00053082,120]
[343087902,1732343441107,-2971.55,0.00053082,120]
[343087903,1732343441118,-2971.55,0.00053082,120]
[343087904,1732343441128,-2971.55,0.00053082,120]
[343087905,1732343441138,-2971.55,0.00053082,120]
[343087906,1732343441148,-2477.7,0.00053082,120]
[343087907,1732343441158,-2477.7,0.00053082,120]
[343087908,1732343441167,-2477.7,0.00053082,120]
[343087909,1732343441177,-2477.7,0.00053082,120]
[343087910,1732343441187,-2477.7,0.00053082,120]
[343087911,1732343441196,-1974.53,0.00053082,120]
[343087912,1732343441206,-1974.53,0.00053082,120]
[343087913,1732343441215,-1974.53,0.00053082,120]
[343087914,1732343441225,-1974.53,0.00053082,120]
[343087915,1732343441235,-1974.53,0.00053082,120]
[343087916,1732343441245,-2232.54,0.00053082,120]
[343087917,1732343441255,-2232.54,0.00053082,120]
[343087918,1732343441264,-2232.54,0.00053082,120]
[343087919,1732343441274,-2232.54,0.00053082,120]
[343087920,1732343441283,-2232.54,0.00053082,120]
[343087921,1732343441292,-500.0,0.00053082,120]
[343087922,1732343441302,-500.0,0.00053082,120]
[343087923,1732343441312,-500.0,0.00053082,120]
[343087924,1732343441321,-500.0,0.00053082,120]
[343087925,1732343441330,-500.0,0.00053082,120]
[343087926,1732343441340,-500.0,0.00053082,120]
[343087927,1732343441349,-500.0,0.00053082,120]
[343087928,1732343441358,-1465.41,0.00053082,120]
[343087929,1732343441370,-1465.41,0.00053082,120]
[343087930,1732343441379,-1465.41,0.00053082,120]
[343087931,1732343441388,-1465.41,0.00053082,120]
[343087932,1732343441398,-1465.41,0.00053082,120]
[343087933,1732343441408,-2096.42,0.00053082,120]
[343087934,1732343441418,-2096.42,0.00053082,120]
[343087935,1732343441428,-2096.42,0.00053082,120]
[343087936,1732343441438,-2096.42,0.00053082,120]
[343087937,1732343441448,-2096.42,0.00053082,120]
[343087938,1732343441457,-500.0,0.00053082,120]
[343087939,1732343441467,-500.0,0.00053082,120]
[343087940,1732343441476,-500.0,0.00053082,120]
[343087941,1732343441485,-500.0,0.00053082,120]
[343087942,1732343441495,-500.0,0.00053082,120]
[343087943,1732343441504,-2011.73,0.00053082,120]
[343087944,1732343441513,-2011.73,0.00053082,120]
[343087945,1732343441523,-2011.73,0.00053082,120]
[343087946,1732343441532,-2011.73,0.00053082,120]
[343087947,1732343441543,-2011.73,0.00053082,120]
[343087948,1732343441553,-1329.72,0.00053082,120]
[343087949,1732343441562,-1329.72,0.00053082,120]
[343087950,1732343441571,-1329.72,0.00053082,120]
[343087951,1732343441581,-1329.72,0.00053082,120]
[343087952,1732343441590,-1329.72,0.00053082,120]
[343087953,1732343441599,-530.34,0.00053082,120]
[343087954,1732343441609,-530.34,0.00053082,120]
[343087955,1732343441621,-530.34,0.00053082,120]
[343087956,1732343441630,-530.34,0.00053082,120]
[343087957,1732343441639,-530.34,0.00053082,120]
[343087958,1732343441649,-152.861063,0.00053082,120]
[343087959,1732343441658,-152.861063,0.00053082,120]
[343087960,1732343441668,-152.861063,0.00053082,120]
[343087961,1732343441677,-152.861063,0.00053082,120]
[343087962,1732343441686,-152.861063,0.00053082,120]
[343087963,1732343441695,-500.0,0.00053082,120]
[343087964,1732343441705,-500.0,0.00053082,120]
[343087965,1732343441715,-500.0,0.00053082,120]
[343087966,1732343441727,-500.0,0.00053082,120]
[343087967,1732343441738,-500.0,0.00053082,120]
[343087968,1732343441747,-500.0,0.00053082,120]
[343087969,1732343441757,-500.0,0.00053082,120]
[343087970,1732343441768,-500.0,0.00053082,120]
[343087971,1732343441778,-325.78448024,0.00053082,120]
[343087972,1732343441788,-500.0,0.00053082,120]
[343087973,1732343441798,-500.0,0.00053082,120]
[343087974,1732343441809,-684.95,0.00053082,120]
[343087975,1732343441818,-684.95,0.00053082,120]
[343087976,1732343441827,-684.95,0.00053082,120]
[343087977,1732343441836,-684.95,0.00053082,120]
[343087978,1732343441846,-684.95,0.00053082,120]
[343087979,1732343441855,-1412.81,0.00053082,120]
[343087980,1732343441867,-1412.81,0.00053082,120]
[343087981,1732343441876,-1412.81,0.00053082,120]
[343087982,1732343441886,-1412.81,0.00053082,120]
[343087983,1732343441895,-1412.81,0.00053082,120]
[343087984,1732343441905,-1577.49,0.00053082,120]
[343087985,1732343441914,-1577.49,0.00053082,120]
[343087986,1732343441923,-1577.49,0.00053082,120]
[343087987,1732343441933,-1577.49,0.00053082,120]
[343087988,1732343441942,-1577.49,0.00053082,120]
[343087989,1732343441952,-586.53,0.00053082,120]
[343087990,1732343441961,-586.53,0.00053082,120]
[343087991,1732343441972,-586.53,0.00053082,120]
[343087992,1732343442054,-586.53,0.00053082,120]
[343087993,1732343442073,-586.53,0.00053082,120]
[343087994,1732343442082,-500.0,0.00053082,120]
[343087995,1732343442092,-500.0,0.00053082,120]
[343087996,1732343442101,-500.0,0.00053082,120]
[343087997,1732343442111,-500.0,0.00053082,120]
[343087998,1732343442122,-313.44827074,0.00053082,120]
[343087999,1732343442132,-1733.39,0.00053082,120]
[343088000,1732343442142,-1733.39,0.00053082,120]
[343088001,1732343442152,-500.0,0.00053082,120]
[343088002,1732343442161,-1733.39,0.00053082,120]
[343088003,1732343442170,-1733.39,0.00053082,120]
[343088004,1732343442179,-1733.39,0.00053082,120]
[343088005,1732343442189,-1737.22,0.00053082,120]
[343088006,1732343442199,-1737.22,0.00053082,120]
[343088007,1732343442209,-1737.22,0.00053082,120]
[343088008,1732343442219,-1737.22,0.00053082,120]
[343088009,1732343442229,-1737.22,0.00053082,120]
[343088010,1732343442238,-495.71155356,0.00053082,120]
[343088011,1732343442248,-500.0,0.00053082,120]
[343088012,1732343442258,-500.0,0.00053082,120]
[343088013,1732343442268,-500.0,0.00053082,120]
[343088014,1732343442277,-500.0,0.00053082,120]
[343088015,1732343442287,-151.0,0.00053082,120]
[343088016,1732343442297,-1606.88,0.00053082,120]
[343088017,1732343442306,-1606.88,0.00053082,120]
[343088018,1732343442316,-1606.88,0.00053082,120]
[343088019,1732343442325,-1606.88,0.00053082,120]
[343088020,1732343442334,-1606.88,0.00053082,120]
[343088021,1732343442343,-151.0,0.00053082,120]
[343088022,1732343442352,-925.38,0.00053082,120]
[343088023,1732343442363,-498.58269248,0.00053082,120]
[343088024,1732343442372,-925.38,0.00053082,120]
[343088025,1732343442382,-925.38,0.00053082,120]
[343088026,1732343442392,-925.38,0.00053082,120]
[343088027,1732343442402,-925.38,0.00053082,120]
[343088028,1732343442412,-504.09153391,0.00053082,120]
[343088029,1732343442422,-1193.58,0.00053082,120]
[343088030,1732343442431,-1193.58,0.00053082,120]
[343088031,1732343442441,-1193.58,0.00053082,120]
[343088032,1732343442451,-1193.58,0.00053082,120]
[343088033,1732343442460,-1193.58,0.00053082,120]
[343088034,1732343442470,-151.0,0.00053082,120]
[343088035,1732343442480,-500.0,0.00053082,120]
[343088036,1732343442489,-500.0,0.00053082,120]
[343088037,1732343442499,-500.0,0.00053082,120]
[343088038,1732343442509,-151.0,0.00053082,120]
[343088039,1732343442519,-500.0,0.00053082,120]
[343088040,1732343442528,-350.5095477,0.00053082,120]
[343088041,1732343442538,-844.13,0.00053082,120]
[343088042,1732343442547,-844.13,0.00053082,120]
[343088043,1732343442557,-844.13,0.00053082,120]
[343088044,1732343442567,-844.13,0.00053082,120]
[343088045,1732343442577,-844.13,0.00053082,120]
[343088046,1732343442587,-500.0,0.00053082,120]
[343088047,1732343442597,-604.73790486,0.00053082,120]
[343088048,1732343442607,-500.0,0.00053082,120]
[343088049,1732343442618,-500.0,0.00053082,120]
[343088050,1732343442628,-589.47459708,0.00053082,120]
[343088051,1732343442637,-500.0,0.00053082,120]
[343088052,1732343442647,-622.82939029,0.00053082,120]
[343088053,1732343442657,-151.0,0.00053082,120]
[343088054,1732343442667,-500.0,0.00053082,120]
[343088055,1732343442677,-500.0,0.00053082,120]
[343088056,1732343442686,-500.0,0.00053082,120]
[343088058,1732343442695,-500.0,0.00053082,120]
[343088059,1732343442705,-577.842228,0.00053082,120]
[343088060,1732343442715,-577.842228,0.00053082,120]
[343088061,1732343442725,-500.0,0.00053082,120]
[343088062,1732343442737,-500.0,0.00053082,120]
[343088063,1732343442747,-500.0,0.00053082,120]
[343088064,1732343442757,-500.0,0.00053082,120]
[343088065,1732343442767,-500.0,0.00053082,120]
[343088066,1732343442784,-500.0,0.00053082,120]
[343088067,1732343442794,-630.94541624,0.00053082,120]
[343088068,1732343442804,-500.0,0.00053082,120]
[343088069,1732343442818,-500.0,0.00053082,120]
[343088070,1732343442828,-151.0,0.00053082,120]
[343088071,1732343442837,-500.0,0.00053082,120]
[343088072,1732343442846,-500.0,0.00053082,120]
[343088073,1732343442855,-2211.07,0.00053082,120]
[343088075,1732343442866,-500.0,0.00053082,120]
[343088076,1732343442875,-2211.07,0.00053082,120]
[343088077,1732343442886,-2211.07,0.00053082,120]
[343088078,1732343442899,-2211.07,0.00053082,120]
[343088079,1732343442909,-2211.07,0.00053082,120]
[343088080,1732343442918,-208.969244,0.00053082,120]
[343088081,1732343442928,-208.969244,0.00053082,120]
[343088082,1732343442937,-1308.15,0.00053082,120]
[343088083,1732343442947,-1308.15,0.00053082,120]
[343088084,1732343442957,-151.0,0.00053082,120]
[343088085,1732343442967,-1308.15,0.00053082,120]
[343088086,1732343442976,-1308.15,0.00053082,120]
[343088087,1732343442986,-1040.91,0.00053082,120]
[343088088,1732343442996,-1308.15,0.00053082,120]
[343088089,1732343443006,-1040.91,0.00053082,120]
[343088090,1732343443015,-1040.91,0.00053082,120]
[343088091,1732343443024,-1040.91,0.00053082,120]
[343088092,1732343443033,-1040.91,0.00053082,120]
[343088093,1732343443042,-279.3396,0.00053082,120]
[343088094,1732343443052,-191.198333,0.00053082,120]
[343088095,1732343443061,-500.0,0.00053082,120]
[343088096,1732343443070,-500.0,0.00053082,120]
[343088097,1732343443079,-409.63897794,0.00053082,120]
[343088098,1732343443088,-151.0,0.00053082,7]
[343088099,1732343443097,-279.3396,0.00053082,120]
[343088100,1732343443106,-500.0,0.00053082,120]
[343088101,1732343443117,-500.0,0.00053082,120]
[343088102,1732343443126,-500.0,0.00053082,120]
[343088103,1732343443135,-546.62984333,0.00053082,120]
[343088104,1732343443144,-2509.62,0.00053082,120]
[343088105,1732343443153,-2509.62,0.00053082,120]
[343088106,1732343443163,-2509.62,0.00053082,120]
[343088107,1732343443172,-2509.62,0.00053082,120]
[343088108,1732343443181,-2509.62,0.00053082,120]
[343088109,1732343443190,-500.0,0.00053082,120]
[343088110,1732343443199,-211.1985476,0.00053082,120]
[343088111,1732343443209,-151.0,0.00053082,120]
[343088112,1732343443217,-500.0,0.00053082,120]
[343088113,1732343443226,-221.97848339,0.00053082,120]
[343088114,1732343443235,-795.29,0.00053082,120]
[343088115,1732343443245,-795.29,0.00053082,120]
[343088116,1732343443254,-795.29,0.00053082,120]
[343088117,1732343443262,-795.29,0.00053082,120]
[343088118,1732343443271,-795.29,0.00053082,120]
[343088119,1732343443280,-900.9,0.00053082,120]
[343088120,1732343443290,-151.0,0.00053082,120]
[343088121,1732343443299,-900.9,0.00053082,120]
[343088122,1732343443310,-900.9,0.00053082,120]
[343088123,1732343443320,-900.9,0.00053082,120]
[343088124,1732343443330,-762.02,0.00053082,120]
[343088125,1732343443340,-900.9,0.00053082,120]
[343088126,1732343443349,-762.02,0.00053082,120]
[343088127,1732343443359,-762.02,0.00053082,120]
[343088128,1732343443372,-762.02,0.00053082,120]
[343088129,1732343443383,-762.02,0.00053082,120]
[343088130,1732343443392,-500.0,0.00053082,120]
[343088131,1732343443402,-547.21388154,0.00053082,120]
[343088132,1732343443411,-500.0,0.00053082,120]
[343088133,1732343443421,-516.10290251,0.00053082,120]
[343088134,1732343443431,-500.0,0.00053082,120]
[343088135,1732343443525,-313.88405135,0.00053082,120]
[343088136,1732343443535,-500.0,0.00053082,120]
[343088137,1732343443544,-151.0,0.00053082,120]
[343088138,1732343443554,-528.50842736,0.00053082,120]
[343088139,1732343443564,-1309.3,0.00053083,120]
[343088140,1732343443574,-500.0,0.00053083,120]
[343088141,1732343443584,-500.0,0.00053083,120]
[343088142,1732343443593,-500.0,0.00053083,120]
[343088143,1732343443603,-500.0,0.00053083,120]
[343088144,1732343443614,-500.0,0.00053083,120]
[343088145,1732343443623,-500.0,0.00053083,120]
[343088146,1732343443632,-459.12,0.00053083,120]
[343088147,1732343443642,-500.0,0.00053083,120]
[343088148,1732343443652,-500.0,0.00053083,120]
[343088149,1732343443661,-500.0,0.00053083,120]
[343088150,1732343443671,-500.0,0.00053083,120]
[343088151,1732343443680,-500.0,0.00053083,120]
[343088152,1732343443690,-511.25421517,0.00053083,120]
[343088153,1732343443699,-185.2029707,0.00053083,120]
[343088154,1732343443708,-500.0,0.00053083,120]
[343088155,1732343443718,-765.93,0.00053083,120]
[343088156,1732343443731,-500.0,0.00053084,120]
[343088157,1732343443740,-500.0,0.00053084,120]
[343088158,1732343443750,-1309.3,0.00053084,120]
[343088159,1732343443760,-544.51720139,0.00053084,120]
[343088160,1732343443770,-500.0,0.00053084,120]
[343088161,1732343443780,-689.15,0.00053084,120]
[343088162,1732343443790,-749.96,0.00053084,120]
[343088163,1732343443800,-578.22437699,0.00053084,120]
[343088165,1732343443809,-996.35,0.00053084,120]
[343088167,1732343443820,-500.0,0.00053084,120]
[343088169,1732343443830,-155.44,0.00053084,120]
[343088171,1732343443840,-633.6,0.00053084,120]
[343088173,1732343443850,-399.85933583,0.00053084,120]
[343088175,1732343443859,-764.88,0.00053084,120]
[343088177,1732343443870,-500.0,0.00053084,120]
[343088179,1732343443882,-500.0,0.00053084,120]
[343088181,1732343443898,-500.0,0.00053084,120]
[343088183,1732343443907,-2645.08,0.00053084,120]
[343088185,1732343443917,-500.0,0.00053084,120]
[343088187,1732343443926,-2040.38,0.00053084,120]
[343088189,1732343443935,-500.0,0.00053084,120]
[343088191,1732343443945,-947.99,0.00053084,120]
[343088192,1732343443954,-500.0,0.00053084,120]
[343088193,1732343443964,-152.861063,0.00053084,120]
[343088195,1732343443973,-500.0,0.00053084,120]
[343088197,1732343443983,-151.0,0.00053084,120]
[343088199,1732343443992,-151.0,0.00053084,120]
[343088200,1732343444003,-226.704828,0.00053084,120]
[343088201,1732343444013,-500.0,0.00053084,120]
[343088202,1732343444022,-684.95,0.00053084,120]
[343088203,1732343444031,-949.48,0.00053084,120]
[343088204,1732343444041,-2791.36,0.00053084,120]
[343088205,1732343444051,-2513.76,0.00053084,120]
[343088206,1732343444060,-151.0,0.00053084,120]
[343088208,1732343444070,-151.0,0.00053084,120]
[343088209,1732343444080,-186.087695,0.00053084,120]
[343088210,1732343444089,-151.0,0.00053084,120]
[343088211,1732343444099,-186.087695,0.00053084,120]
[343088212,1732343444108,-500.0,0.00053084,120]
[343088213,1732343444120,-2774.28,0.00053084,120]
[343088214,1732343444129,-151.0,0.00053084,120]
[343088215,1732343444139,-1816.86,0.00053084,120]
[343088216,1732343444148,-500.0,0.00053084,120]
[343088217,1732343444158,-1018.16,0.00053084,120]
[343088218,1732343444168,-345.837557,0.00053084,120]
[343088219,1732343444177,-345.837557,0.00053084,120]
[343088220,1732343444187,-1538.34,0.00053084,120]
[343088221,1732343444197,-3532.48,0.00053084,120]
[343088222,1732343444207,-1794.6,0.00053084,120]
[343088223,1732343444216,-500.0,0.00053084,120]
[343088224,1732343444228,-1838.67,0.00053084,120]
[343088225,1732343444237,-2605.92,0.00053084,120]
[343088226,1732343444246,-500.0,0.00053084,120]
[343088227,1732343444256,-500.0,0.00053084,120]
[343088228,1732343444266,-941.46,0.00053084,120]
[343088229,1732343444275,-1308.15,0.00053084,120]
[343088230,1732343444285,-2501.88,0.00053084,120]
[343088231,1732343444295,-1979.59,0.00053084,120]
[343088232,1732343444304,-771.76,0.00053084,120]
[343088233,1732343444315,-762.02,0.00053084,120]
[343088234,1732343444324,-500.0,0.00053084,120]
[343088235,1732343444334,-500.0,0.00053084,120]
[343088236,1732343444343,-765.93,0.00053084,120]
[343088237,1732343444353,-500.0,0.00053084,120]
[343088238,1732343444364,-151.0,0.00053085,120]
[343088239,1732343444374,-218.135884,0.00053085,120]
[343088240,1732343444383,-200.0,0.00053085,15]
[343088241,1732343444393,-1682.92,0.00053085,120]
[343088242,1732343444403,-1682.92,0.00053085,120]
[343088243,1732343444412,-1682.92,0.00053085,120]
[343088244,1732343444422,-1682.92,0.00053085,120]
[343088245,1732343444432,-1682.92,0.00053085,120]
[343088246,1732343444442,-1682.92,0.00053085,120]
[343088247,1732343444452,-1052.38,0.00053085,120]
[343088248,1732343444462,-1052.38,0.00053085,120]
[343088249,1732343444472,-1052.38,0.00053085,120]
[343088250,1732343444481,-1052.38,0.00053085,120]
[343088251,1732343444491,-1052.38,0.00053085,120]
[343088252,1732343444500,-1052.38,0.00053085,120]
[343088253,1732343444510,-1198.13,0.00053085,120]
[343088254,1732343444520,-1198.13,0.00053085,120]
[343088255,1732343444529,-1198.13,0.00053085,120]
[343088256,1732343444539,-1198.13,0.00053085,120]
[343088257,1732343444548,-1198.13,0.00053085,120]
[343088258,1732343444557,-1198.13,0.00053085,120]
[343088259,1732343444567,-500.0,0.00053085,120]
[343088260,1732343444577,-500.0,0.00053085,120]
[343088261,1732343444586,-500.0,0.00053085,120]
[343088262,1732343444596,-500.0,0.00053085,120]
[343088263,1732343444605,-500.0,0.00053085,120]
[343088264,1732343444617,-500.0,0.00053085,120]
[343088265,1732343444626,-500.0,0.00053085,120]
[343088266,1732343444636,-2836.74,0.00053085,120]
[343088267,1732343444645,-2836.74,0.00053085,120]
[343088268,1732343444654,-500.0,0.00053085,120]
[343088269,1732343444664,-2836.74,0.00053085,120]
[343088270,1732343444673,-500.0,0.00053085,120]
[343088271,1732343444683,-162.16,0.00053085,120]
[343088272,1732343444692,-2836.74,0.00053085,120]
[343088273,1732343444702,-2836.74,0.00053085,120]
[343088274,1732343444711,-2836.74,0.00053085,120]
[343088275,1732343444722,-971.4,0.00053085,120]
[343088276,1732343444732,-971.4,0.00053085,120]
[343088277,1732343444745,-971.4,0.00053085,120]
[343088278,1732343444755,-971.4,0.00053085,120]
[343088279,1732343444765,-971.4,0.00053085,120]
[343088280,1732343444775,-971.4,0.00053085,120]
[343088281,1732343444787,-500.0,0.00053085,120]
[343088282,1732343444870,-352.01839011,0.00053085,120]